[Event "Titled Tuesday Blitz August 15 Early 2023"]
[White "Melikhov, Evgeny V."]
[Black "HamedWafa4"]
[WhiteFideId "4122046"]
[WhiteElo "2392"]
[BlackElo "2586"]
[Result "1-0"]
[Round "6"]
[TimeControl "180+1"]
[Date "2023.08.15"]
[WhiteClock "0:00:25"]
[BlackClock "0:00:23"]
[Board "120"]

1. d4 {[%clk 0:03:00]}  Nf6 {[%clk 0:02:58]} 2. c4 {[%clk 0:03:00]}  e6 {[%clk 0:02:58]} 3. Nc3 {[%clk 0:03:00]}  Bb4 {[%clk 0:02:57]} 4. Qc2 {[%clk 0:03:00]}  O-O {[%clk 0:02:55]} 5. e4 {[%clk 0:02:56]}  d6 {[%clk 0:02:53]} 6. e5 {[%clk 0:02:55]}  dxe5 {[%clk 0:02:53]} 7. dxe5 {[%clk 0:02:56]}  Ng4 {[%clk 0:02:53]} 8. Nf3 {[%clk 0:02:55]}  Nc6 {[%clk 0:02:52]} 9. Bf4 {[%clk 0:02:54]}  Nd4 {[%clk 0:02:48]} 10. Qd2 {[%clk 0:02:52]}  Nxf3+ {[%clk 0:02:26]} 11. gxf3 {[%clk 0:02:51]}  Qxd2+ {[%clk 0:02:27]} 12. Kxd2 {[%clk 0:02:51]}  Nh6 {[%clk 0:02:26]} 13. a3 {[%clk 0:02:45]}  Bxc3+ {[%clk 0:02:23]} 14. Kxc3 {[%clk 0:02:45]}  Nf5 {[%clk 0:02:24]} 15. Bd3 {[%clk 0:02:40]}  Bd7 {[%clk 0:02:23]} 16. Be4 {[%clk 0:02:35]}  Bc6 {[%clk 0:02:17]} 17. b4 {[%clk 0:02:32]}  Rfd8 {[%clk 0:02:14]} 18. Rhd1 {[%clk 0:02:27]}  Nh4 {[%clk 0:02:08]} 19. b5 {[%clk 0:02:19]}  Bxe4 {[%clk 0:02:04]} 20. fxe4 {[%clk 0:02:19]}  Ng6 {[%clk 0:02:02]} 21. Bg5 {[%clk 0:02:02]}  Rxd1 {[%clk 0:02:01]} 22. Rxd1 {[%clk 0:02:01]}  Nxe5 {[%clk 0:02:01]} 23. f4 {[%clk 0:01:57]}  Ng6 {[%clk 0:01:54]} 24. f5 {[%clk 0:01:47]}  Nf8 {[%clk 0:01:47]} 25. Rd8 {[%clk 0:01:37]}  Rxd8 {[%clk 0:01:43]} 26. Bxd8 {[%clk 0:01:37]}  exf5 {[%clk 0:01:42]} 27. exf5 {[%clk 0:01:37]}  c6 {[%clk 0:01:39]} 28. bxc6 {[%clk 0:01:31]}  bxc6 {[%clk 0:01:40]} 29. Kb4 {[%clk 0:01:30]}  Nd7 {[%clk 0:01:35]} 30. Ka5 {[%clk 0:01:29]}  g6 {[%clk 0:01:20]} 31. fxg6 {[%clk 0:01:28]}  hxg6 {[%clk 0:01:21]} 32. Ka6 {[%clk 0:01:28]}  f5 {[%clk 0:01:21]} 33. Kxa7 {[%clk 0:01:28]}  f4 {[%clk 0:01:21]} 34. Bh4 {[%clk 0:01:11]}  f3 {[%clk 0:01:20]} 35. Kb7 {[%clk 0:01:06]}  g5 {[%clk 0:01:02]} 36. Bf2 {[%clk 0:01:04]}  Ne5 {[%clk 0:01:00]} 37. c5 {[%clk 0:01:02]}  Nd3 {[%clk 0:00:57]} 38. Bd4 {[%clk 0:00:58]}  Kf7 {[%clk 0:00:37]} 39. Kxc6 {[%clk 0:00:56]}  Ke6 {[%clk 0:00:37]} 40. a4 {[%clk 0:00:50]}  Ne5+ {[%clk 0:00:36]} 41. Kb7 {[%clk 0:00:42]}  Kd5 {[%clk 0:00:35]} 42. Bf2 {[%clk 0:00:41]}  Ng4 {[%clk 0:00:35]} 43. Bg3 {[%clk 0:00:36]}  Nxh2 {[%clk 0:00:20]} 44. c6 {[%clk 0:00:34]}  Nf1 {[%clk 0:00:18]} 45. Bf2 {[%clk 0:00:31]}  g4 {[%clk 0:00:19]} 46. c7 {[%clk 0:00:31]}  g3 {[%clk 0:00:19]} 47. Bxg3 {[%clk 0:00:31]}  Nxg3 {[%clk 0:00:20]} 48. c8=Q {[%clk 0:00:31]}  Ke4 {[%clk 0:00:20]} 49. Qe6+ {[%clk 0:00:30]}  Kf4 {[%clk 0:00:21]} 50. Qf6+ {[%clk 0:00:29]}  Nf5 {[%clk 0:00:21]} 51. Qb2 {[%clk 0:00:29]}  Ne3 {[%clk 0:00:20]} 52. a5 {[%clk 0:00:28]}  Ng4 {[%clk 0:00:21]} 53. a6 {[%clk 0:00:27]}  f2 {[%clk 0:00:22]} 54. Qxf2+ {[%clk 0:00:27]}  Nxf2 {[%clk 0:00:22]} 55. a7 {[%clk 0:00:27]}  Ke3 {[%clk 0:00:23]} 56. a8=Q {[%clk 0:00:27]}  Ne4 {[%clk 0:00:24]} 57. Kc6 {[%clk 0:00:27]}  Kd4 {[%clk 0:00:24]} 58. Qa4+ {[%clk 0:00:26]}  Ke5 {[%clk 0:00:25]} 59. Qa5+ {[%clk 0:00:25]}  Ke6 {[%clk 0:00:23]} 60. Qd5+ {[%clk 0:00:25]} 1-0


[Site "https://www.chess.com"]

[Event "Titled Tuesday Blitz August 15 Early 2023"]
[White "Fuzesabonyilaci"]
[Black "Ismayil, Malak"]
[BlackFideId "13412604"]
[WhiteElo "2380"]
[BlackElo "2533"]
[Result "1-0"]
[Round "6"]
[TimeControl "180+1"]
[Date "2023.08.15"]
[WhiteClock "0:00:07"]
[BlackClock "0:00:11"]
[Board "124"]

1. e4 {[%clk 0:03:00]}  e5 {[%clk 0:02:58]} 2. Nf3 {[%clk 0:02:59]}  Nc6 {[%clk 0:02:57]} 3. Bc4 {[%clk 0:02:59]}  Bc5 {[%clk 0:02:56]} 4. c3 {[%clk 0:02:58]}  Nf6 {[%clk 0:02:57]} 5. d3 {[%clk 0:02:57]}  d6 {[%clk 0:02:57]} 6. O-O {[%clk 0:02:54]}  h6 {[%clk 0:02:53]} 7. a4 {[%clk 0:02:50]}  a6 {[%clk 0:02:51]} 8. Re1 {[%clk 0:02:46]}  O-O {[%clk 0:02:51]} 9. h3 {[%clk 0:02:40]}  Be6 {[%clk 0:02:50]} 10. Bxe6 {[%clk 0:02:38]}  fxe6 {[%clk 0:02:51]} 11. b4 {[%clk 0:02:37]}  Bb6 {[%clk 0:02:46]} 12. Na3 {[%clk 0:02:36]}  Qe8 {[%clk 0:02:42]} 13. Nc4 {[%clk 0:02:34]}  Ba7 {[%clk 0:02:38]} 14. Rb1 {[%clk 0:02:12]}  b5 {[%clk 0:02:22]} 15. Ncd2 {[%clk 0:01:43]}  Nh5 {[%clk 0:02:18]} 16. Nf1 {[%clk 0:01:41]}  Nf4 {[%clk 0:02:12]} 17. Be3 {[%clk 0:01:36]}  Qg6 {[%clk 0:02:01]} 18. Ng3 {[%clk 0:01:31]}  Bxe3 {[%clk 0:01:53]} 19. Rxe3 {[%clk 0:01:32]}  Rf6 {[%clk 0:01:50]} 20. Ra1 {[%clk 0:01:13]}  Raf8 {[%clk 0:01:47]} 21. axb5 {[%clk 0:01:09]}  axb5 {[%clk 0:01:48]} 22. Ra6 {[%clk 0:01:01]}  Nb8 {[%clk 0:01:28]} 23. Ra8 {[%clk 0:00:52]}  Nd7 {[%clk 0:01:27]} 24. Rxf8+ {[%clk 0:00:50]}  Nxf8 {[%clk 0:01:25]} 25. Qa1 {[%clk 0:00:48]}  Qf7 {[%clk 0:01:23]} 26. Nh2 {[%clk 0:00:35]}  h5 {[%clk 0:01:13]} 27. Qa2 {[%clk 0:00:30]}  h4 {[%clk 0:01:11]} 28. Ngf1 {[%clk 0:00:29]}  Nd7 {[%clk 0:01:01]} 29. Ng4 {[%clk 0:00:29]}  Rg6 {[%clk 0:01:01]} 30. Nfh2 {[%clk 0:00:28]}  Nb6 {[%clk 0:00:55]} 31. Nf3 {[%clk 0:00:27]}  Qe7 {[%clk 0:00:52]} 32. Qa6 {[%clk 0:00:25]}  Qd7 {[%clk 0:00:39]} 33. Nxh4 {[%clk 0:00:24]}  Rg5 {[%clk 0:00:39]} 34. Nf3 {[%clk 0:00:25]}  Rg6 {[%clk 0:00:38]} 35. Qb7 {[%clk 0:00:23]}  Kh7 {[%clk 0:00:33]} 36. Re1 {[%clk 0:00:22]}  Qf7 {[%clk 0:00:25]} 37. Re3 {[%clk 0:00:19]}  Nh5 {[%clk 0:00:23]} 38. Qc6 {[%clk 0:00:17]}  Qd7 {[%clk 0:00:21]} 39. Qxd7 {[%clk 0:00:16]}  Nxd7 {[%clk 0:00:22]} 40. Re2 {[%clk 0:00:17]}  Nhf6 {[%clk 0:00:22]} 41. Nxf6+ {[%clk 0:00:15]}  Rxf6 {[%clk 0:00:23]} 42. Ra2 {[%clk 0:00:14]}  Nb6 {[%clk 0:00:23]} 43. Ra5 {[%clk 0:00:14]}  d5 {[%clk 0:00:21]} 44. Rxb5 {[%clk 0:00:13]}  dxe4 {[%clk 0:00:19]} 45. dxe4 {[%clk 0:00:14]}  Rf4 {[%clk 0:00:19]} 46. Rxe5 {[%clk 0:00:14]}  Nc4 {[%clk 0:00:18]} 47. Rxe6 {[%clk 0:00:14]}  Rf8 {[%clk 0:00:17]} 48. Ng5+ {[%clk 0:00:13]}  Kg8 {[%clk 0:00:17]} 49. Rc6 {[%clk 0:00:13]}  Ne5 {[%clk 0:00:13]} 50. Rxc7 {[%clk 0:00:13]}  Nd3 {[%clk 0:00:14]} 51. Rxg7+ {[%clk 0:00:12]}  Kxg7 {[%clk 0:00:13]} 52. Ne6+ {[%clk 0:00:13]}  Kf7 {[%clk 0:00:14]} 53. Nxf8 {[%clk 0:00:13]}  Kxf8 {[%clk 0:00:15]} 54. h4 {[%clk 0:00:12]}  Ne5 {[%clk 0:00:13]} 55. f4 {[%clk 0:00:11]}  Ng4 {[%clk 0:00:13]} 56. g3 {[%clk 0:00:10]}  Ke7 {[%clk 0:00:13]} 57. Kg2 {[%clk 0:00:11]}  Ke6 {[%clk 0:00:14]} 58. Kf3 {[%clk 0:00:11]}  Nf6 {[%clk 0:00:15]} 59. c4 {[%clk 0:00:11]}  Nd7 {[%clk 0:00:15]} 60. g4 {[%clk 0:00:11]}  Nb6 {[%clk 0:00:16]} 61. h5 {[%clk 0:00:12]}  Nxc4 {[%clk 0:00:16]} 62. g5 {[%clk 0:00:11]}  Kf7 {[%clk 0:00:16]} 63. f5 {[%clk 0:00:11]}  Ne5+ {[%clk 0:00:16]} 64. Kf4 {[%clk 0:00:11]}  Nd3+ {[%clk 0:00:16]} 65. Ke3 {[%clk 0:00:12]}  Nxb4 {[%clk 0:00:17]} 66. Kd4 {[%clk 0:00:12]}  Nc6+ {[%clk 0:00:16]} 67. Kd5 {[%clk 0:00:11]}  Nb4+ {[%clk 0:00:17]} 68. Kd6 {[%clk 0:00:11]}  Nc2 {[%clk 0:00:16]} 69. e5 {[%clk 0:00:10]}  Ne3 {[%clk 0:00:17]} 70. g6+ {[%clk 0:00:10]}  Kf8 {[%clk 0:00:15]} 71. f6 {[%clk 0:00:11]}  Nf5+ {[%clk 0:00:13]} 72. Kd7 {[%clk 0:00:11]}  Nd4 {[%clk 0:00:08]} 73. e6 {[%clk 0:00:11]}  Nxe6 {[%clk 0:00:08]} 74. Kxe6 {[%clk 0:00:11]}  Kg8 {[%clk 0:00:09]} 75. h6 {[%clk 0:00:09]}  Kh8 {[%clk 0:00:10]} 76. g7+ {[%clk 0:00:08]}  Kh7 {[%clk 0:00:09]} 77. f7 {[%clk 0:00:08]}  Kxh6 {[%clk 0:00:09]} 78. f8=Q {[%clk 0:00:08]}  Kg5 {[%clk 0:00:10]} 79. g8=Q+ {[%clk 0:00:07]}  Kh5 {[%clk 0:00:10]} 80. Qf5+ {[%clk 0:00:07]}  Kh4 {[%clk 0:00:11]} 81. Qfh7# {[%clk 0:00:07]} 1-0


[Site "https://www.chess.com"]

[Event "Titled Tuesday Blitz August 15 Early 2023"]
[White "Mogirzan, Matei-Valeriu"]
[Black "Rietze, Clemens, Dr."]
[WhiteFideId "1257455"]
[BlackFideId "24620351"]
[WhiteElo "2531"]
[BlackElo "2379"]
[Result "0-1"]
[Round "6"]
[TimeControl "180+1"]
[Date "2023.08.15"]
[WhiteClock "0:00:02"]
[BlackClock "0:00:18"]
[Board "125"]

1. e4 {[%clk 0:03:00]}  c5 {[%clk 0:02:59]} 2. Nf3 {[%clk 0:02:59]}  Nc6 {[%clk 0:02:59]} 3. d4 {[%clk 0:02:50]}  cxd4 {[%clk 0:03:00]} 4. Nxd4 {[%clk 0:02:51]}  Nf6 {[%clk 0:03:00]} 5. Nc3 {[%clk 0:02:51]}  d6 {[%clk 0:03:01]} 6. Bc4 {[%clk 0:02:50]}  e6 {[%clk 0:03:00]} 7. Bb3 {[%clk 0:02:50]}  Be7 {[%clk 0:02:59]} 8. Be3 {[%clk 0:02:48]}  a6 {[%clk 0:02:58]} 9. g4 {[%clk 0:02:48]}  Nd7 {[%clk 0:02:46]} 10. Bxe6 {[%clk 0:02:43]}  fxe6 {[%clk 0:02:42]} 11. Nxe6 {[%clk 0:02:43]}  Qa5 {[%clk 0:02:41]} 12. Nxg7+ {[%clk 0:02:44]}  Kf7 {[%clk 0:02:41]} 13. Nf5 {[%clk 0:02:42]}  Nde5 {[%clk 0:02:34]} 14. g5 {[%clk 0:02:28]}  Bxf5 {[%clk 0:01:58]} 15. exf5 {[%clk 0:02:29]}  Rag8 {[%clk 0:01:56]} 16. Qh5+ {[%clk 0:02:20]}  Kf8 {[%clk 0:01:56]} 17. f6 {[%clk 0:02:14]}  Bxf6 {[%clk 0:01:51]} 18. Qh6+ {[%clk 0:02:08]}  Bg7 {[%clk 0:01:48]} 19. Qxd6+ {[%clk 0:02:07]}  Kf7 {[%clk 0:01:45]} 20. Qd1 {[%clk 0:01:19]}  Rd8 {[%clk 0:01:21]} 21. Qh5+ {[%clk 0:01:17]}  Ng6 {[%clk 0:01:21]} 22. O-O {[%clk 0:01:04]}  Qf5 {[%clk 0:01:21]} 23. Ne2 {[%clk 0:00:57]}  Ne5 {[%clk 0:01:04]} 24. h3 {[%clk 0:00:45]}  Qf3 {[%clk 0:00:56]} 25. Qxf3+ {[%clk 0:00:38]}  Nxf3+ {[%clk 0:00:57]} 26. Kg2 {[%clk 0:00:38]}  Nfh4+ {[%clk 0:00:57]} 27. Kh1 {[%clk 0:00:37]}  Nf5 {[%clk 0:00:50]} 28. Ng3 {[%clk 0:00:34]}  Ngh4 {[%clk 0:00:47]} 29. Rad1 {[%clk 0:00:25]}  b5 {[%clk 0:00:38]} 30. Bb6 {[%clk 0:00:23]}  Rxd1 {[%clk 0:00:34]} 31. Rxd1 {[%clk 0:00:24]}  Bxb2 {[%clk 0:00:34]} 32. Ne4 {[%clk 0:00:18]}  Kg6 {[%clk 0:00:27]} 33. c3 {[%clk 0:00:17]}  Ba3 {[%clk 0:00:27]} 34. Rd7 {[%clk 0:00:08]}  Re8 {[%clk 0:00:22]} 35. Nf6 {[%clk 0:00:02]}  Re1+ {[%clk 0:00:22]} 36. Kh2 {[%clk 0:00:03]}  Bd6+ {[%clk 0:00:22]} 37. Rxd6 {[%clk 0:00:02]}  Nxd6 {[%clk 0:00:22]} 38. Kg3 {[%clk 0:00:02]}  Nhf5+ {[%clk 0:00:22]} 39. Kf4 {[%clk 0:00:02]}  Ra1 {[%clk 0:00:18]} 40. Kg4 {[%clk 0:00:02]}  h5+ {[%clk 0:00:18]} 41. gxh6 {[%clk 0:00:02]}  Nxh6+ {[%clk 0:00:17]} 42. Kh4 {[%clk 0:00:01]}  Kxf6 {[%clk 0:00:18]} 43. Kh5 {[%clk 0:00:02]}  Nhf7 {[%clk 0:00:18]} 0-1


[Site "https://www.chess.com"]

[Event "Titled Tuesday Blitz August 15 Early 2023"]
[White "Nosacheva, Mariya"]
[Black "Kovalevsky, Stanislav"]
[WhiteFideId "34111422"]
[BlackFideId "13508598"]
[WhiteElo "2375"]
[BlackElo "2506"]
[Result "0-1"]
[Round "6"]
[TimeControl "180+1"]
[Date "2023.08.15"]
[WhiteClock "0:00:10"]
[BlackClock "0:00:09"]
[Board "127"]

1. e4 {[%clk 0:03:00]}  c6 {[%clk 0:02:59]} 2. d4 {[%clk 0:02:56]}  d5 {[%clk 0:03:00]} 3. e5 {[%clk 0:02:52]}  c5 {[%clk 0:03:00]} 4. dxc5 {[%clk 0:02:52]}  e6 {[%clk 0:03:01]} 5. a3 {[%clk 0:02:52]}  Bxc5 {[%clk 0:02:59]} 6. b4 {[%clk 0:02:51]}  Be7 {[%clk 0:02:50]} 7. Qg4 {[%clk 0:02:50]}  g6 {[%clk 0:02:34]} 8. Bd3 {[%clk 0:02:50]}  Nc6 {[%clk 0:02:29]} 9. Bb2 {[%clk 0:02:44]}  Nh6 {[%clk 0:02:25]} 10. Qe2 {[%clk 0:02:40]}  Nf5 {[%clk 0:02:22]} 11. Nf3 {[%clk 0:02:40]}  Qb6 {[%clk 0:02:15]} 12. Nc3 {[%clk 0:02:29]}  Nfd4 {[%clk 0:02:09]} 13. Na4 {[%clk 0:02:20]}  Nxf3+ {[%clk 0:02:03]} 14. Qxf3 {[%clk 0:02:17]}  Qc7 {[%clk 0:02:04]} 15. O-O {[%clk 0:02:05]}  Bd7 {[%clk 0:01:40]} 16. Rfe1 {[%clk 0:02:03]}  Na5 {[%clk 0:01:28]} 17. bxa5 {[%clk 0:01:49]}  Bxa4 {[%clk 0:01:27]} 18. a6 {[%clk 0:01:49]}  bxa6 {[%clk 0:01:17]} 19. c4 {[%clk 0:01:47]}  Bc6 {[%clk 0:01:12]} 20. cxd5 {[%clk 0:01:38]}  Bxd5 {[%clk 0:01:12]} 21. Qh3 {[%clk 0:01:23]}  O-O {[%clk 0:01:09]} 22. Bc1 {[%clk 0:01:14]}  Rfd8 {[%clk 0:01:00]} 23. Bh6 {[%clk 0:01:10]}  Rab8 {[%clk 0:00:51]} 24. Bxa6 {[%clk 0:01:09]}  Rb3 {[%clk 0:00:49]} 25. Qg4 {[%clk 0:01:09]}  Rxa3 {[%clk 0:00:40]} 26. Rxa3 {[%clk 0:01:08]}  Bxa3 {[%clk 0:00:41]} 27. Qa4 {[%clk 0:01:07]}  Qc3 {[%clk 0:00:31]} 28. Kf1 {[%clk 0:00:50]}  Bxg2+ {[%clk 0:00:18]} 29. Kxg2 {[%clk 0:00:50]}  Qxe1 {[%clk 0:00:18]} 30. Qxa3 {[%clk 0:00:50]}  Qe4+ {[%clk 0:00:18]} 31. Qf3 {[%clk 0:00:49]}  Qxe5 {[%clk 0:00:15]} 32. Bf1 {[%clk 0:00:47]}  Rd5 {[%clk 0:00:13]} 33. Bc4 {[%clk 0:00:47]}  Rd8 {[%clk 0:00:12]} 34. Be3 {[%clk 0:00:44]}  Qf5 {[%clk 0:00:10]} 35. Qxf5 {[%clk 0:00:42]}  gxf5 {[%clk 0:00:11]} 36. Bxa7 {[%clk 0:00:43]}  Rc8 {[%clk 0:00:11]} 37. Be2 {[%clk 0:00:42]}  Kg7 {[%clk 0:00:12]} 38. Bd4+ {[%clk 0:00:41]}  Kg6 {[%clk 0:00:12]} 39. h4 {[%clk 0:00:41]}  Rc2 {[%clk 0:00:11]} 40. h5+ {[%clk 0:00:38]}  Kg5 {[%clk 0:00:10]} 41. Bf3 {[%clk 0:00:32]}  f6 {[%clk 0:00:07]} 42. Bd1 {[%clk 0:00:32]}  Rc4 {[%clk 0:00:05]} 43. Bb2 {[%clk 0:00:29]}  f4 {[%clk 0:00:04]} 44. Bf3 {[%clk 0:00:24]}  e5 {[%clk 0:00:04]} 45. Ba3 {[%clk 0:00:18]}  h6 {[%clk 0:00:04]} 46. Be7 {[%clk 0:00:17]}  e4 {[%clk 0:00:05]} 47. Be2 {[%clk 0:00:17]}  f3+ {[%clk 0:00:05]} 48. Bxf3 {[%clk 0:00:15]}  exf3+ {[%clk 0:00:06]} 49. Kxf3 {[%clk 0:00:15]}  Rc7 {[%clk 0:00:06]} 50. Bd6 {[%clk 0:00:15]}  Rf7 {[%clk 0:00:07]} 51. Bf4+ {[%clk 0:00:14]}  Kxh5 {[%clk 0:00:07]} 52. Kg3 {[%clk 0:00:15]}  Kg6 {[%clk 0:00:08]} 53. Kh3 {[%clk 0:00:15]}  Re7 {[%clk 0:00:08]} 54. f3 {[%clk 0:00:16]}  Re2 {[%clk 0:00:08]} 55. Kg3 {[%clk 0:00:16]}  h5 {[%clk 0:00:08]} 56. Bc1 {[%clk 0:00:16]}  Re1 {[%clk 0:00:08]} 57. Ba3 {[%clk 0:00:16]}  Rg1+ {[%clk 0:00:09]} 58. Kh2 {[%clk 0:00:15]}  Ra1 {[%clk 0:00:08]} 59. Bb2 {[%clk 0:00:15]}  Ra2 {[%clk 0:00:08]} 60. Kh3 {[%clk 0:00:10]}  Rxb2 {[%clk 0:00:09]} 0-1


[Site "https://www.chess.com"]

[Event "Titled Tuesday Blitz August 15 Early 2023"]
[White "Efremov, Vladislav"]
[Black "Mihailidis, Anastasios"]
[WhiteFideId "44159935"]
[BlackFideId "4205588"]
[WhiteElo "2353"]
[BlackElo "2481"]
[Result "0-1"]
[Round "6"]
[TimeControl "180+1"]
[Date "2023.08.15"]
[WhiteClock "0:00:04"]
[BlackClock "0:00:06"]
[Board "134"]

1. e4 {[%clk 0:02:59]}  c5 {[%clk 0:02:59]} 2. Nf3 {[%clk 0:02:59]}  d6 {[%clk 0:02:58]} 3. d4 {[%clk 0:02:59]}  cxd4 {[%clk 0:02:58]} 4. Nxd4 {[%clk 0:03:00]}  Nf6 {[%clk 0:02:59]} 5. Nc3 {[%clk 0:03:00]}  g6 {[%clk 0:02:59]} 6. f3 {[%clk 0:02:58]}  Bg7 {[%clk 0:03:00]} 7. Be3 {[%clk 0:02:58]}  O-O {[%clk 0:03:00]} 8. Qd2 {[%clk 0:02:59]}  Nc6 {[%clk 0:03:00]} 9. Be2 {[%clk 0:02:59]}  d5 {[%clk 0:02:58]} 10. O-O-O {[%clk 0:02:49]}  dxe4 {[%clk 0:02:48]} 11. Nxc6 {[%clk 0:02:46]}  Qxd2+ {[%clk 0:02:47]} 12. Rxd2 {[%clk 0:02:45]}  bxc6 {[%clk 0:02:47]} 13. Bc5 {[%clk 0:02:36]}  Re8 {[%clk 0:02:42]} 14. fxe4 {[%clk 0:02:32]}  Bg4 {[%clk 0:02:41]} 15. e5 {[%clk 0:02:29]}  Nd7 {[%clk 0:02:19]} 16. Bxg4 {[%clk 0:02:28]}  Nxc5 {[%clk 0:02:19]} 17. Re1 {[%clk 0:02:15]}  Bh6 {[%clk 0:02:18]} 18. Kd1 {[%clk 0:02:13]}  Bxd2 {[%clk 0:02:16]} 19. Kxd2 {[%clk 0:02:14]}  Rad8+ {[%clk 0:02:16]} 20. Kc1 {[%clk 0:02:15]}  f6 {[%clk 0:02:09]} 21. b4 {[%clk 0:02:09]}  Na6 {[%clk 0:02:00]} 22. a3 {[%clk 0:01:57]}  Nc7 {[%clk 0:01:57]} 23. Bf3 {[%clk 0:01:45]}  Nd5 {[%clk 0:01:54]} 24. Ne4 {[%clk 0:01:33]}  Kg7 {[%clk 0:01:46]} 25. Nc5 {[%clk 0:01:32]}  e6 {[%clk 0:01:37]} 26. exf6+ {[%clk 0:01:28]}  Kxf6 {[%clk 0:01:35]} 27. g3 {[%clk 0:01:22]}  e5 {[%clk 0:01:24]} 28. Kb2 {[%clk 0:01:19]}  Kg7 {[%clk 0:01:12]} 29. Bg4 {[%clk 0:01:17]}  Rd6 {[%clk 0:01:08]} 30. Ne4 {[%clk 0:01:15]}  Rdd8 {[%clk 0:01:07]} 31. Nc5 {[%clk 0:01:15]}  Rb8 {[%clk 0:00:48]} 32. Bd7 {[%clk 0:01:14]}  Re7 {[%clk 0:00:43]} 33. Bxc6 {[%clk 0:01:14]}  Nf6 {[%clk 0:00:33]} 34. Bf3 {[%clk 0:00:59]}  e4 {[%clk 0:00:25]} 35. Bg2 {[%clk 0:00:54]}  e3 {[%clk 0:00:23]} 36. Re2 {[%clk 0:00:52]}  Re5 {[%clk 0:00:18]} 37. Kc3 {[%clk 0:00:52]}  Rbe8 {[%clk 0:00:12]} 38. Kd4 {[%clk 0:00:49]}  R5e7 {[%clk 0:00:12]} 39. Nd3 {[%clk 0:00:41]}  Rd8+ {[%clk 0:00:09]} 40. Kc3 {[%clk 0:00:42]}  Ne4+ {[%clk 0:00:07]} 41. Kb2 {[%clk 0:00:34]}  Nd2 {[%clk 0:00:07]} 42. Kc1 {[%clk 0:00:29]}  Nc4 {[%clk 0:00:06]} 43. a4 {[%clk 0:00:27]}  Ne5 {[%clk 0:00:06]} 44. Nc5 {[%clk 0:00:26]}  Nc4 {[%clk 0:00:01]} 45. Bh3 {[%clk 0:00:20]}  Rd2 {[%clk 0:00:02]} 46. Re1 {[%clk 0:00:15]}  Na3 {[%clk 0:00:02]} 47. Ne6+ {[%clk 0:00:13]}  Kh6 {[%clk 0:00:02]} 48. Rxe3 {[%clk 0:00:10]}  Rxc2+ {[%clk 0:00:03]} 49. Kd1 {[%clk 0:00:09]}  Rd7+ {[%clk 0:00:04]} 50. Ke1 {[%clk 0:00:10]}  Rdd2 {[%clk 0:00:03]} 51. Rxa3 {[%clk 0:00:07]}  Rxh2 {[%clk 0:00:03]} 52. Kd1 {[%clk 0:00:06]}  Rcf2 {[%clk 0:00:02]} 53. Ke1 {[%clk 0:00:05]}  Rb2 {[%clk 0:00:03]} 54. Rd3 {[%clk 0:00:03]}  Rh1+ {[%clk 0:00:02]} 55. Bf1 {[%clk 0:00:04]}  Rb1+ {[%clk 0:00:03]} 56. Rd1 {[%clk 0:00:04]}  Rxd1+ {[%clk 0:00:03]} 57. Kxd1 {[%clk 0:00:05]}  Rxf1+ {[%clk 0:00:04]} 58. Ke2 {[%clk 0:00:05]}  Ra1 {[%clk 0:00:04]} 59. a5 {[%clk 0:00:03]}  Rb1 {[%clk 0:00:04]} 60. Nc5 {[%clk 0:00:02]}  Rxb4 {[%clk 0:00:04]} 61. Kd3 {[%clk 0:00:03]}  Rb1 {[%clk 0:00:03]} 62. Kc4 {[%clk 0:00:03]}  Rg1 {[%clk 0:00:04]} 63. Kb5 {[%clk 0:00:03]}  Rxg3 {[%clk 0:00:04]} 64. Ka6 {[%clk 0:00:03]}  Rc3 {[%clk 0:00:04]} 65. Ne4 {[%clk 0:00:03]}  Rc4 {[%clk 0:00:04]} 66. Nd6 {[%clk 0:00:03]}  Rd4 {[%clk 0:00:05]} 67. Nb5 {[%clk 0:00:03]}  Rd5 {[%clk 0:00:04]} 68. Nxa7 {[%clk 0:00:03]}  g5 {[%clk 0:00:04]} 69. Nc6 {[%clk 0:00:02]}  g4 {[%clk 0:00:05]} 70. Kb6 {[%clk 0:00:02]}  Rd6 {[%clk 0:00:04]} 71. a6 {[%clk 0:00:02]}  g3 {[%clk 0:00:04]} 72. a7 {[%clk 0:00:03]}  g2 {[%clk 0:00:04]} 73. a8=Q {[%clk 0:00:03]}  g1=Q+ {[%clk 0:00:05]} 74. Kc7 {[%clk 0:00:03]}  Rxc6+ {[%clk 0:00:03]} 75. Qxc6+ {[%clk 0:00:04]}  Qg6 {[%clk 0:00:03]} 76. Qh1+ {[%clk 0:00:03]}  Kg7 {[%clk 0:00:03]} 77. Qa1+ {[%clk 0:00:04]}  Qf6 {[%clk 0:00:03]} 78. Qg1+ {[%clk 0:00:04]}  Kh8 {[%clk 0:00:03]} 79. Kd7 {[%clk 0:00:03]}  Qg7+ {[%clk 0:00:03]} 80. Qxg7+ {[%clk 0:00:04]}  Kxg7 {[%clk 0:00:04]} 81. Ke6 {[%clk 0:00:05]}  Kg6 {[%clk 0:00:04]} 82. Ke5 {[%clk 0:00:05]}  Kg5 {[%clk 0:00:05]} 83. Ke4 {[%clk 0:00:05]}  Kg4 {[%clk 0:00:05]} 84. Ke3 {[%clk 0:00:06]}  Kg3 {[%clk 0:00:06]} 85. Ke2 {[%clk 0:00:06]}  Kg2 {[%clk 0:00:06]} 86. Ke3 {[%clk 0:00:07]}  h5 {[%clk 0:00:05]} 87. Kf4 {[%clk 0:00:08]}  h4 {[%clk 0:00:05]} 88. Kg4 {[%clk 0:00:04]}  h3 {[%clk 0:00:06]} 0-1


[Site "https://www.chess.com"]